bitfinex/quotes_SOLUSD_20250207
["timestamp","ask_amount","ask_price","bid_price","bid_amount"]
[1738938607040,50.60014367,202.22,202.07,0.063]
[1738938607041,0.5,202.11,202.07,0.063]
[1738938607246,14.66876843,202.08,202.07,0.063]
[1738938610069,14.66876843,202.08,202.06,0.063]
[1738938610070,0.9948,202.07,202.06,0.063]
[1738938610363,35.66356843,202.07,202.06,0.063]
[1738938610562,35.16356843,202.07,202.06,0.063]
[1738938610735,34.66876843,202.07,202.06,0.063]
[1738938611477,20.0,202.03,202.02,0.063]
[1738938611772,34.66876843,202.03,202.02,0.063]
[1738938612065,35.16366843,202.03,202.02,0.063]
[1738938613335,28.3776869,202.03,202.02,0.063]
[1738938613557,28.3776869,202.03,201.97,0.063]
[1738938613558,0.5,202.02,201.97,0.063]
[1738938613757,0.5,201.98,201.92,0.063]
[1738938614076,14.66876843,201.93,201.92,0.063]
[1738938614381,0.5,201.95,201.92,0.063]
[1738938614664,0.4951,201.97,201.85,0.063]
[1738938614665,0.5,201.9,201.85,0.063]
[1738938614871,0.5,201.88,201.85,0.063]
[1738938615050,0.5,201.86,201.85,0.063]
[1738938615251,0.5,201.86,201.75,108.25340403]
[1738938615252,15.16876843,201.86,201.75,108.25340403]
[1738938615469,14.66876843,201.77,201.75,0.063]
[1738938616769,43.6054158,201.77,201.75,0.063]
[1738938617274,0.5,201.77,201.75,0.063]
[1738938617475,13.91184853,201.77,201.75,0.063]
[1738938617844,0.4956,201.76,201.75,0.063]
[1738938618071,20.0,201.74,201.73,0.063]
[1738938618271,43.6054158,201.74,201.73,0.0001]
[1738938619749,13.91184853,201.72,201.68,0.063]
[1738938619972,20.4958,201.69,201.68,0.063]
[1738938620161,44.1012158,201.69,201.68,0.063]
[1738938620473,44.1012158,201.69,201.68,0.0001]
[1738938620659,20.0,201.64,201.57,6.296]
[1738938620856,23.6054158,201.59,201.56,1.5106]
[1738938621261,23.6054158,201.61,201.56,2.0106]
[1738938621458,23.6054158,201.62,201.58,0.5]
[1738938622177,23.6054158,201.59,201.56,1.5106]
[1738938622353,23.6054158,201.59,201.55,0.063]
[1738938622354,23.6054158,201.57,201.55,0.063]
[1738938622555,0.5,201.64,201.56,1.0]
[1738938622556,23.6054158,201.6,201.56,1.0]
[1738938622879,23.6054158,201.57,201.51,18.37424853]
[1738938623062,20.0,201.65,201.5,1.5331]
[1738938623063,23.6054158,201.56,201.5,25.1385158]
[1738938623265,23.6054158,201.59,201.52,23.6054158]
[1738938623670,23.6054158,201.6,201.53,23.6054158]
[1738938623980,23.6054158,201.6,201.54,13.41184853]
[1738938624186,43.6054158,201.6,201.54,13.41184853]
[1738938624356,43.6054158,201.6,201.53,13.41184853]
[1738938624555,23.6054158,201.58,201.52,6.3162]
[1738938624757,23.6054158,201.59,201.52,29.9216158]
[1738938624959,23.6054158,201.63,201.56,23.6054158]
[1738938625269,81.8,201.72,201.52,6.3162]
[1738938625270,0.4957,201.71,201.57,13.41184853]
[1738938625474,81.8,201.72,201.59,1.6032]
[1738938625652,81.8,201.72,201.6,13.41184853]
[1738938625859,0.4956,201.74,201.62,13.41184853]
[1738938626067,23.6054158,201.72,201.65,23.6054158]
[1738938626275,1.0,201.77,201.63,4.9595]
[1738938626470,23.6054158,201.65,201.61,6.0384]
[1738938626673,1.0,201.74,201.61,6.0384]
[1738938626858,20.0,201.7,201.59,1.6032]
[1738938627071,20.0,201.7,201.6,13.41184853]
[1738938627270,1.0,201.75,201.6,13.41184853]
[1738938627271,7.40803605,201.76,201.6,13.41184853]
[1738938627468,1.0,201.77,201.6,13.41184853]
[1738938627667,2.7344,201.79,201.6,13.41184853]
[1738938627871,23.6054158,201.74,201.66,23.6054158]
[1738938628087,23.6054158,201.77,201.7,23.6054158]
[1738938628287,0.4955,201.8,201.7,23.6054158]
[1738938628288,23.6054158,201.8,201.73,23.6054158]
[1738938628605,0.4955,201.82,201.72,1.6452]
[1738938629093,1.0,201.79,201.68,6.583]
[1738938629292,2.0,201.81,201.68,6.583]
[1738938629485,2.0,201.81,201.66,1.6017]
[1738938629486,20.0,201.73,201.66,1.6017]
[1738938629783,20.0,201.72,201.63,6.33]
[1738938629986,23.6054158,201.64,201.63,6.33]
[1738938630171,23.6054158,201.66,201.63,6.33]
[1738938630380,23.6054158,201.65,201.63,6.33]
[1738938630880,1.0,201.79,201.65,13.41184853]
[1738938631080,23.6054158,201.71,201.63,34.8948158]
[1738938631284,0.4955,201.78,201.67,13.41184853]
[1738938631485,0.4955,201.78,201.67,37.01726433]
[1738938631664,0.4955,201.78,201.67,13.41184853]
[1738938631872,23.6054158,201.79,201.72,23.6054158]
[1738938632084,23.6054158,201.81,201.74,23.6054158]
[1738938632405,23.6054158,201.81,201.73,4.957]
[1738938632406,23.6054158,201.8,201.73,23.6054158]
[1738938632687,0.063,201.82,201.73,19.44504853]
[1738938632989,0.063,201.82,201.74,13.41184853]
[1738938633287,0.063,201.82,201.76,20.0]
[1738938633590,0.063,201.82,201.77,13.41184853]
[1738938633779,0.063,201.82,201.77,37.01726433]
[1738938634092,23.6684158,201.82,201.74,28.5622158]
[1738938634277,23.6684158,201.82,201.73,6.0332]
[1738938634278,23.6054158,201.78,201.73,6.0332]
[1738938634469,23.6054158,201.75,201.73,6.0332]
[1738938634665,0.063,201.82,201.73,6.0332]
[1738938634666,23.6054158,201.76,201.73,6.0332]
[1738938634879,0.063,201.82,201.73,10.9903]
[1738938635097,0.063,201.82,201.73,6.0332]
[1738938635601,20.0,201.79,201.73,6.0332]
[1738938635765,20.0,201.79,201.71,6.2009]
[1738938635967,23.6054158,201.75,201.71,1.5409]
[1738938636168,23.6054158,201.76,201.71,1.5409]
[1738938636999,23.6054158,201.77,201.71,1.5409]
[1738938637187,20.0,201.75,201.72,23.6054158]
[1738938637397,20.0,201.75,201.71,25.1463158]
[1738938637592,81.8,201.78,201.73,23.6054158]
[1738938638100,23.6054158,201.75,201.71,1.5409]
[1738938638309,23.6054158,201.74,201.71,1.5409]
[1738938638492,23.6054158,201.73,201.71,1.5409]
[1738938638796,23.6054158,201.72,201.71,1.5409]
[1738938638984,23.6054158,201.72,201.67,6.3879]
[1738938639577,81.8,201.78,201.71,23.6054158]
[1738938639799,81.8,201.78,201.67,11.3462]
[1738938639800,81.8,201.78,201.68,13.41184853]
[1738938639996,20.0,201.75,201.67,11.3462]
[1738938640185,24.1010158,201.74,201.67,29.9933158]
[1738938640391,23.6054158,201.73,201.67,6.3879]
[1738938640789,20.0,201.73,201.69,23.6054158]
[1738938641000,0.4956,201.77,201.67,11.3464]
[1738938641001,81.8,201.78,201.72,23.6054158]
[1738938641193,81.8,201.78,201.73,23.6054158]
[1738938641390,0.4955,201.8,201.74,23.6054158]
[1738938641607,0.063,201.82,201.71,34.92684853]
[1738938641781,0.063,201.82,201.8,23.6054158]
[1738938642303,0.063,201.82,201.79,23.6054158]
[1738938642482,0.063,201.82,201.8,23.6054158]
[1738938642880,0.063,201.82,201.79,23.6054158]
[1738938643076,0.063,201.82,201.78,23.6054158]
[1738938643292,0.063,201.82,201.81,23.6054158]
[1738938643581,0.063,201.82,201.72,4.9573]
[1738938643582,0.063,201.82,201.76,23.6054158]
[1738938643815,0.063,201.82,201.74,6.4865]
[1738938644109,0.063,201.82,201.71,6.155]
[1738938644288,0.4955,201.81,201.71,6.4725]
[1738938644484,23.6054158,201.8,201.72,23.6054158]
[1738938645183,23.6054158,201.8,201.73,23.6054158]
[1738938645507,20.0,201.78,201.74,23.6054158]
[1738938645713,23.6054158,201.76,201.71,1.515]
[1738938646089,20.0,201.77,201.71,25.1204158]
[1738938646291,43.6054158,201.77,201.71,1.515]
[1738938646495,0.4956,201.76,201.71,1.515]
[1738938646900,23.6054158,201.74,201.71,1.515]
[1738938647189,23.6054158,201.75,201.71,1.515]
[1738938647389,23.6054158,201.74,201.71,1.515]
[1738938647611,23.6054158,201.75,201.71,1.515]
[1738938647805,0.4956,201.76,201.71,1.515]
[1738938647806,20.0,201.73,201.71,1.515]
[1738938648477,43.6054158,201.77,201.71,1.515]
[1738938648707,81.8,201.8,201.75,23.6054158]
[1738938648907,82.2955,201.8,201.75,23.6054158]
[1738938649103,82.2955,201.8,201.73,23.6054158]
[1738938649420,82.2955,201.8,201.71,1.515]
[1738938649713,23.6054158,201.78,201.71,1.515]
[1738938650904,0.4956,201.77,201.71,1.515]
[1738938651315,44.1010158,201.77,201.69,28.5634158]
[1738938651810,20.4956,201.77,201.7,23.6054158]
[1738938652208,24.1010158,201.76,201.69,23.6054158]
[1738938652397,23.6054158,201.75,201.68,23.6054158]
[1738938652596,23.6054158,201.75,201.67,23.6054158]
[1738938652799,23.6054158,201.75,201.65,6.2229]
[1738938652800,23.6054158,201.72,201.65,29.8283158]
[1738938653002,23.6054158,201.7,201.63,23.6054158]
[1738938653183,20.0,201.73,201.68,23.6054158]
[1738938653383,24.1010158,201.76,201.69,23.6054158]
[1738938653603,0.4956,201.76,201.7,23.6054158]
[1738938654000,20.0,201.73,201.68,23.6054158]
[1738938654316,23.6054158,201.7,201.63,23.6054158]
[1738938654613,23.6054158,201.7,201.62,23.6054158]
[1738938654993,23.6054158,201.69,201.62,23.6054158]
[1738938655199,23.6054158,201.69,201.61,23.6054158]
[1738938655401,0.4958,201.68,201.61,23.6054158]
[1738938655912,23.6054158,201.65,201.58,23.6054158]
[1738938656096,23.6054158,201.64,201.57,23.6054158]
[1738938656609,23.6054158,201.63,201.62,0.03]
[1738938656914,0.4958,201.68,201.62,23.6354158]
[1738938657123,0.4958,201.68,201.63,23.6054158]
[1738938657303,20.0,201.67,201.63,23.6054158]
[1738938657499,20.0,201.67,201.64,23.6054158]
[1738938657828,0.4957,201.73,201.66,23.6054158]
[1738938658115,20.0,201.71,201.67,23.6054158]
[1738938658292,0.4957,201.73,201.68,23.6054158]
[1738938658493,0.4957,201.73,201.67,23.6054158]
[1738938659008,0.5586,201.74,201.68,23.6054158]
[1738938659311,23.6054158,201.71,201.64,23.6054158]
[1738938659508,23.6054158,201.68,201.62,0.03]
[1738938659902,13.41184853,201.69,201.62,0.03]
[1738938660106,20.0,201.66,201.62,0.03]
[1738938660705,20.0,201.67,201.62,4.9898]
[1738938660911,23.6054158,201.72,201.65,23.6054158]
[1738938661412,24.1012158,201.69,201.62,23.6354158]
[1738938661607,23.6054158,201.66,201.62,0.03]
[1738938663427,0.4959,201.65,201.62,0.03]
[1738938664232,0.4958,201.66,201.62,0.03]
[1738938664404,23.6054158,201.69,201.62,23.6354158]
[1738938664727,23.6054158,201.68,201.62,0.03]
[1738938665026,23.6054158,201.66,201.62,0.03]
[1738938665211,23.6054158,201.67,201.62,0.03]
[1738938665408,23.6054158,201.68,201.62,0.03]
[1738938665622,24.1012158,201.67,201.62,0.03]
[1738938666133,1.2394,201.71,201.62,0.03]
[1738938666134,23.6054158,201.69,201.62,0.03]
[1738938666321,23.6054158,201.67,201.62,0.03]
[1738938666826,20.4957,201.7,201.62,0.03]
[1738938666827,23.6054158,201.65,201.62,0.03]
[1738938667018,23.6054158,201.63,201.62,0.03]
[1738938667325,20.0,201.63,201.62,0.03]
[1738938668219,23.6054158,201.63,201.62,0.03]
[1738938669113,20.0,201.6,201.52,0.03]
[1738938669334,23.6054158,201.54,201.52,0.03]
[1738938669632,24.1016158,201.53,201.52,0.03]
[1738938669951,24.1016158,201.53,201.4,4.9652]
[1738938669952,25.3421158,201.53,201.41,0.03]
[1738938670116,23.6054158,201.48,201.41,23.6354158]
[1738938670304,20.0,201.52,201.46,23.6054158]
[1738938670731,23.6054158,201.49,201.41,20.03]
[1738938670906,1.7367,201.53,201.41,20.03]
[1738938670907,0.4962,201.53,201.41,20.03]
[1738938671230,82.2961,201.55,201.42,13.41184853]
[1738938671435,82.2961,201.55,201.41,0.03]
[1738938671436,20.0,201.52,201.41,0.03]
[1738938671930,23.6054158,201.5,201.43,23.6054158]
[1738938672635,23.6054158,201.51,201.44,23.6054158]
[1738938672930,23.6054158,201.52,201.45,23.6054158]
[1738938673098,1.7364,201.55,201.47,23.6054158]
[1738938673099,23.6054158,201.54,201.47,23.6054158]
[1738938673301,0.4961,201.55,201.41,4.9949]
[1738938673302,0.4961,201.55,201.49,23.6054158]
[1738938673535,23.6054158,201.54,201.47,23.6054158]
[1738938673942,23.6054158,201.56,201.49,23.6054158]
[1738938674271,23.6054158,201.57,201.5,23.6054158]
[1738938674562,23.6054158,201.56,201.49,23.6054158]
[1738938674867,23.6054158,201.59,201.52,23.6054158]
[1738938675028,23.6054158,201.63,201.57,23.6054158]
[1738938675232,0.4959,201.63,201.57,23.6054158]
[1738938675458,0.4959,201.63,201.52,4.64]
[1738938675459,24.1013158,201.65,201.58,23.6054158]
[1738938675659,23.6054158,201.64,201.57,23.6054158]
[1738938675840,23.6054158,201.64,201.57,28.5664158]
[1738938676045,0.4959,201.65,201.59,23.6054158]
[1738938676360,23.6054158,201.69,201.62,23.6054158]
[1738938676560,23.6054158,201.72,201.65,23.6054158]
[1738938676742,23.6054158,201.71,201.64,23.6054158]
[1738938676944,23.6054158,201.73,201.66,23.6054158]
[1738938677137,39.10149319,201.74,201.62,13.41184853]
[1738938677478,23.6054158,201.71,201.64,23.6054158]
[1738938678161,0.4957,201.72,201.61,23.6054158]
[1738938678162,23.6054158,201.68,201.61,23.6054158]
[1738938678346,23.6054158,201.7,201.64,13.41184853]
[1738938678545,23.6054158,201.71,201.64,37.01726433]
[1738938678751,24.1641158,201.74,201.66,37.01726433]
[1738938679056,23.6054158,201.69,201.62,23.6054158]
[1738938679367,23.6054158,201.7,201.64,13.41184853]
[1738938679537,23.6054158,201.71,201.64,13.41184853]
[1738938679734,0.063,201.74,201.7,23.6054158]
[1738938680042,0.063,201.74,201.65,18.05184853]
[1738938680043,0.063,201.74,201.71,23.6054158]
[1738938680739,0.063,201.74,201.72,37.01726433]
[1738938680940,0.063,201.74,201.73,37.01726433]
[1738938681547,0.063,201.74,201.73,41.97436433]
[1738938681865,0.063,201.74,201.73,43.52046433]
[1738938683142,0.063,201.74,201.73,38.56336433]
[1738938683477,0.063,201.74,201.73,1.5461]
[1738938683763,0.063,201.74,201.73,25.1515158]
[1738938684148,0.063,201.74,201.68,23.6054158]
[1738938684338,23.6684158,201.74,201.67,23.6054158]
[1738938684845,0.063,201.74,201.69,23.6054158]
[1738938685063,0.063,201.74,201.65,7.9011]
[1738938685064,0.063,201.74,201.68,23.6054158]
[1738938685367,0.063,201.74,201.65,7.9011]
[1738938685368,0.063,201.74,201.73,23.6054158]
[1738938685866,0.063,201.74,201.73,37.01726433]
[1738938686543,0.4954,201.85,201.8,23.6054158]
[1738938686741,0.4954,201.84,201.79,23.6054158]
[1738938687071,38.36454646,201.82,201.77,4.64]
[1738938687242,38.30154646,201.81,201.77,4.64]
[1738938687573,38.36454646,201.82,201.77,4.64]
[1738938687955,0.063,201.82,201.78,38.30154646]
[1738938688161,0.063,201.82,201.77,42.94154646]
[1738938688474,0.063,201.82,201.78,38.30154646]
[1738938688666,0.063,201.82,201.77,42.94154646]
[1738938689380,0.063,201.82,201.77,4.64]
[1738938689886,0.063,201.82,201.7,350.30154646]
[1738938689887,0.063,201.82,201.71,0.74338363]
[1738938690051,38.30154646,201.78,201.71,38.30154646]
[1738938690372,20.0,201.81,201.71,38.30154646]
[1738938690582,38.30154646,201.79,201.71,13.41184853]
[1738938690745,38.36454646,201.82,201.7,18.05184853]
[1738938691059,0.063,201.82,201.78,38.30154646]
[1738938691458,0.063,201.82,201.79,38.30154646]
[1738938691670,0.063,201.82,201.75,14.41184853]
[1738938691848,0.063,201.82,201.81,38.30154646]
[1738938692043,0.063,201.82,201.81,51.71339499]
[1738938692653,0.063,201.92,201.85,20.0]
[1738938692870,0.063,201.92,201.91,38.30154646]
[1738938693365,0.063,201.92,201.9,38.30154646]
[1738938693552,38.36454646,201.92,201.86,4.64]
[1738938693751,38.30154646,201.9,201.86,4.64]
[1738938694045,38.30154646,201.91,201.86,4.64]
[1738938694471,38.36454646,201.92,201.86,4.64]
[1738938694678,38.30154646,201.9,201.86,4.64]
[1738938694971,0.063,201.92,201.81,42.94154646]
[1738938694972,38.30154646,201.88,201.81,42.94154646]
[1738938695271,0.4953,201.87,201.81,4.67]
[1738938695572,0.063,201.82,201.81,4.67]
[1738938695955,0.063,201.82,201.81,0.03]
[1738938697257,0.063,201.82,201.81,38.33154646]
[1738938697592,0.063,201.82,201.81,51.74339499]
[1738938697877,0.063,201.82,201.81,52.48638947]
[1738938698091,0.063,201.82,201.81,51.74339499]
[1738938698868,0.063,201.92,201.85,6.5834]
[1738938699063,38.85974646,201.92,201.85,44.88494646]
[1738938699385,0.063,201.92,201.88,38.30154646]
[1738938699888,0.063,201.92,201.86,13.41184853]
[1738938700185,0.063,201.92,201.9,13.41184853]
[1738938700370,0.063,201.92,201.91,56.35339499]
[1738938700683,100.063,202.0,201.95,20.0]
[1738938700989,100.063,202.0,201.99,71.71339499]
[1738938701192,100.063,202.0,201.99,76.66409499]
[1738938701371,100.063,202.0,201.99,114.96564145]
[1738938701681,62.54602194,202.0,201.99,114.96564145]
[1738938701892,32.66462194,202.0,201.99,151.56424145]
[1738938702397,2.194e-05,202.0,201.99,463.56424145]
[1738938703380,38.30154646,202.16,202.02,1.0]
[1738938703593,38.79614646,202.16,202.02,73.45551257]
[1738938703764,45.97342554,202.17,202.02,73.45551257]
[1738938703976,0.0001,202.03,202.02,104.45551257]
[1738938704169,0.0001,202.03,202.02,103.45551257]
[1738938704573,0.0001,202.03,202.02,71.71339499]
[1738938705363,0.0001,202.03,202.02,76.66339499]
[1738938705861,0.0001,202.03,202.02,245.16339499]
[1738938706695,0.0001,202.03,202.02,557.16339499]
[1738938706865,0.03,202.22,202.08,22.0]
[1738938707060,0.03,202.22,202.18,38.30154646]
[1738938707393,0.03,202.22,202.19,38.30154646]
[1738938708192,0.03,202.22,202.2,38.30154646]
[1738938708375,0.03,202.22,202.18,38.30154646]
[1738938709197,0.03,202.22,202.19,38.30154646]
[1738938709510,0.03,202.22,202.21,38.30154646]
[1738938709690,0.03,202.22,202.21,52.45492841]
[1738938710475,0.03,202.22,202.21,366.45492841]
[1738938710663,0.03,202.22,202.21,365.71339499]
[1738938710894,0.03,202.22,202.21,363.71339499]
[1738938711074,0.03,202.22,202.21,368.65869499]
[1738938711504,0.03,202.22,202.21,51.71339499]
[1738938711689,0.03,202.22,202.21,56.35339499]
[1738938713220,0.03,202.22,202.21,51.71339499]
[1738938713376,0.03,202.22,202.21,56.35339499]
[1738938713707,0.03,202.22,202.21,18.05184853]
[1738938713895,0.03,202.22,202.21,4.64]
[1738938714106,0.03,202.22,202.16,38.30154646]
[1738938714405,0.03,202.22,202.18,51.71339499]
[1738938714906,0.03,202.22,202.18,13.41184853]
[1738938715110,0.03,202.22,202.19,38.30154646]
[1738938715409,0.03,202.22,202.21,51.71339499]
[1738938715584,0.03,202.22,202.21,38.30154646]
[1738938715778,0.03,202.22,202.2,38.30154646]
[1738938716209,0.03,202.22,202.17,4.64]
[1738938716210,0.03,202.22,202.18,38.30154646]
[1738938716600,0.03,202.22,202.18,34.53764384]
[1738938716798,0.03,202.22,202.2,38.30154646]
[1738938717007,0.03,202.22,202.21,38.30154646]
[1738938717207,0.03,202.22,202.21,43.98841262]
[1738938717411,0.03,202.22,202.21,38.30154646]
[1738938718714,0.03,202.22,202.21,51.71339499]
[1738938719215,0.03,202.22,202.21,38.30154646]
[1738938719698,0.03,202.22,202.21,42.94154646]
[1738938720021,0.03,202.22,202.12,7.30884645]
[1738938720022,0.03,202.22,202.19,42.94154646]
[1738938720184,0.03,202.22,202.2,38.30154646]
[1738938720383,0.03,202.22,202.21,38.30154646]
[1738938720600,0.03,202.22,202.21,51.71339499]
[1738938720907,0.03,202.22,202.21,52.45491608]
[1738938721098,0.03,202.22,202.21,57.40021608]
[1738938721298,0.03,202.22,202.21,56.65869499]
[1738938721986,2.4704,202.39,202.25,20.0]
[1738938722227,0.988,202.41,202.35,38.30154646]
[1738938722408,0.988,202.41,202.36,38.30154646]
[1738938722594,0.988,202.41,202.37,38.30154646]
[1738938723130,0.03,202.43,202.33,4.64]
[1738938723131,38.30154646,202.42,202.35,38.30154646]
[1738938723302,38.30154646,202.39,202.33,42.94154646]
[1738938723498,39.31944646,202.43,202.33,4.64]
[1738938723697,0.03,202.43,202.41,38.30154646]
[1738938723907,0.03,202.43,202.36,20.0]
[1738938723908,0.03,202.43,202.42,20.0]
[1738938724115,0.03,202.43,202.42,14.15274304]
[1738938724619,0.03,202.43,202.42,52.4542895]
[1738938724931,0.03,202.43,202.41,38.30154646]
[1738938725225,0.03,202.43,202.3,176.44824646]
[1738938725226,0.03,202.43,202.31,0.74092572]
[1738938725404,0.03,202.43,202.29,4.62]
[1738938725595,0.03,202.43,202.3,0.741162]
[1738938725796,0.03,202.43,202.38,13.41184853]
[1738938725995,0.03,202.52,202.44,20.0]
[1738938726190,0.03,202.52,202.45,5.36073078]
[1738938726403,0.03,202.52,202.51,38.30154646]
[1738938726627,0.03,202.52,202.46,38.30154646]
[1738938726827,38.30154646,202.5,202.45,4.62]
[1738938727019,38.30154646,202.51,202.45,4.62]
[1738938727227,39.31904646,202.52,202.45,4.62]
[1738938727431,38.30154646,202.49,202.45,4.62]
[1738938727607,1.0175,202.52,202.46,38.30154646]
[1738938728525,0.03,202.52,202.51,38.30154646]
[1738938728924,0.03,202.52,202.48,38.30154646]
[1738938729135,0.03,202.52,202.43,4.62]
[1738938729519,1.5531,202.51,202.43,4.62]
[1738938729702,1.5531,202.51,202.34,4.62]
[1738938730109,1.5531,202.51,202.38,20.0]
[1738938730404,38.30154646,202.5,202.43,38.30154646]
[1738938730606,1.5531,202.51,202.46,38.30154646]
[1738938730824,38.33154646,202.52,202.45,38.30154646]
[1738938731024,38.30154646,202.49,202.42,38.30154646]
[1738938731228,3.4566,202.51,202.34,4.62]
[1738938731540,3.4566,202.51,202.37,21.0]
[1738938731917,3.4566,202.51,202.38,0.7409717]
[1738938731918,0.9876,202.51,202.38,0.7409717]
[1738938732239,0.9876,202.51,202.42,20.0]
[1738938732542,0.03,202.52,202.49,38.30154646]
[1738938732842,0.03,202.52,202.51,38.30154646]
[1738938733021,0.03,202.52,202.5,38.30154646]
[1738938733222,0.03,202.52,202.49,38.30154646]
[1738938733522,0.03,202.52,202.5,38.30154646]
[1738938733721,0.03,202.52,202.51,38.30154646]
[1738938733941,0.03,202.52,202.5,38.30154646]
[1738938734422,0.03,202.52,202.49,38.30154646]
[1738938734621,38.33154646,202.52,202.46,38.30154646]
[1738938734941,0.03,202.52,202.47,38.30154646]
[1738938735345,1.0175,202.52,202.47,38.30154646]
[1738938735555,0.03,202.52,202.49,38.30154646]
[1738938735918,0.03,202.52,202.47,38.30154646]
[1738938736126,0.03,202.52,202.48,38.30154646]
[1738938736349,38.33154646,202.52,202.45,38.30154646]
[1738938736558,38.30154646,202.48,202.38,4.9411]
[1738938736763,0.03,202.52,202.41,13.41184853]
[1738938736931,0.03,202.52,202.49,38.30154646]
[1738938737128,0.03,202.52,202.41,45.15258905]
[1738938737457,0.03,202.52,202.46,4.9392]
[1738938738044,0.03,202.52,202.51,38.30154646]
[1738938738260,0.03,202.52,202.48,38.30154646]
[1738938738633,0.03,202.52,202.46,38.30154646]
[1738938738932,38.33154646,202.52,202.46,4.62]
[1738938739150,38.30154646,202.47,202.4,38.30154646]
[1738938739332,0.9878,202.46,202.4,38.30154646]
[1738938739521,0.9878,202.46,202.42,38.30154646]
[1738938739727,0.03,202.52,202.45,38.30154646]
[1738938739953,38.33154646,202.52,202.45,38.30154646]
[1738938740252,38.30154646,202.5,202.43,38.30154646]
[1738938740562,0.9876,202.51,202.4,14.15272658]
[1738938740765,38.30154646,202.47,202.41,38.30154646]
[1738938740927,38.30154646,202.47,202.4,38.30154646]
[1738938741126,3.4566,202.51,202.35,4.9419]
[1738938741442,10.0188,202.51,202.37,13.41184853]
[1738938741838,20.0,202.48,202.37,13.41184853]
[1738938742230,38.30154646,202.45,202.38,58.30154646]
[1738938742554,38.30154646,202.42,202.35,4.62]
[1738938742928,38.30154646,202.43,202.36,38.30154646]
[1738938743133,38.30154646,202.46,202.39,38.30154646]
[1738938743336,2.5791,202.47,202.35,4.62]
[1738938743662,0.9876,202.5,202.45,38.30154646]
[1738938743958,1.0175,202.52,202.47,38.30154646]
[1738938744128,1.0175,202.52,202.48,38.30154646]
[1738938744328,0.03,202.52,202.48,38.30154646]
[1738938744564,0.03,202.52,202.49,38.30154646]
[1738938744736,0.03,202.52,202.5,38.30154646]
[1738938744934,0.03,202.52,202.51,38.30154646]
[1738938745357,0.03,202.52,202.5,38.30154646]
[1738938745661,0.03,202.52,202.49,4.62]
[1738938745839,0.03,202.52,202.5,38.30154646]
[1738938746355,0.03,202.52,202.49,4.62]
[1738938746740,0.03,202.52,202.5,14.15247273]
[1738938747660,38.30154646,202.63,202.53,20.0]
[1738938747838,38.30154646,202.61,202.54,38.30154646]
[1738938748033,38.30154646,202.6,202.53,38.30154646]
[1738938748346,38.30154646,202.56,202.5,38.30154646]
[1738938748550,20.0,202.63,202.5,38.30154646]
[1738938748551,38.30154646,202.57,202.5,38.30154646]
[1738938748868,38.30154646,202.56,202.49,42.92154646]
[1738938749262,38.30154646,202.53,202.45,38.30154646]
[1738938749460,38.30154646,202.52,202.45,38.30154646]
[1738938749659,51.71339499,202.6,202.44,38.30154646]
[1738938749660,38.30154646,202.51,202.44,38.30154646]
[1738938749867,38.30154646,202.5,202.43,38.33154646]
[1738938750046,1.0,202.59,202.45,38.30154646]
[1738938750047,38.30154646,202.52,202.45,38.30154646]
[1738938750252,38.30154646,202.51,202.44,38.30154646]
[1738938750453,38.30154646,202.52,202.45,38.30154646]
[1738938750648,0.9875,202.52,202.46,38.30154646]
[1738938750858,38.30154646,202.56,202.49,38.30154646]
[1738938751374,38.30154646,202.56,202.45,13.41184853]
[1738938751375,38.30154646,202.55,202.48,38.30154646]
[1738938751544,0.9872,202.58,202.53,38.30154646]
[1738938751970,0.9872,202.6,202.54,38.30154646]
[1738938752279,1.5671,202.64,202.54,38.30154646]
[1738938752280,38.30154646,202.62,202.55,38.30154646]